fUST/lending_fUST_20240102
["ID","MTS","AMOUNT","RATE_DAILY","PERIOD"]
[309822938,1704179433797,-213.65969948,0.00040968,4]
[309822939,1704179433806,-495.97252479,0.00040968,4]
[309822940,1704179433816,-242.79110021,0.00040968,4]
[309822941,1704179433829,-230.84808073,0.00040968,4]
[309822942,1704179433838,-267.12511664,0.00040968,4]
[309822943,1704179433848,-156.04354129,0.00040968,4]
[309822944,1704179433857,-155.25421925,0.00040968,7]
[309822945,1704179433867,-246.26509339,0.00040968,4]
[309822946,1704179433876,-278.08676297,0.00040968,4]
[309822947,1704179433885,-444.12403931,0.00040968,4]
[309822948,1704179433894,-2111.39829087,0.00040968,4]
[309822949,1704179433902,-644.9503419,0.00040968,4]
[309822950,1704179433911,-292.47088681,0.00040968,4]
[309822951,1704179433920,-155.26173977,0.00040968,2]
[309822952,1704179433929,-444.80646069,0.00040968,4]
[309822953,1704179433938,-1094.59579196,0.00040968,4]
[309822954,1704179433947,-891.73242573,0.00040968,4]
[309822955,1704179433956,-311.27971188,0.00040968,4]
[309822956,1704179433966,-332.65324601,0.00040968,4]
[309822957,1704179433975,-265.80724314,0.00040968,4]
[309822958,1704179433984,-266.24181002,0.00040968,4]
[309822959,1704179433993,-3932.10989251,0.00040968,4]
[309822960,1704179434003,-344.44622794,0.00040968,4]
[309822961,1704179434012,-441.67781575,0.00040968,4]
[309822962,1704179434021,-446.72704991,0.00040968,4]
[309822963,1704179434030,-4044.7511135,0.00040968,4]
[309822964,1704179434038,-417.31448423,0.00040968,4]
[309822965,1704179434047,-556.08094412,0.00040968,4]
[309822966,1704179434056,-4810.69086572,0.00040968,4]
[309822967,1704179434067,-466.91757275,0.00040968,4]
[309822968,1704179434076,-657.29378289,0.00040968,4]
[309822969,1704179434085,-14211.15439642,0.00040968,4]
[309822970,1704179434094,-1192.95254363,0.00040968,4]
[309822971,1704179434103,-196.87509826,0.00040968,4]
[309822972,1704179434113,-19707.35166662,0.00040968,4]
[309822973,1704179434122,-630.099773,0.00040968,2]
[309822974,1704179434131,-630.099773,0.00040968,2]
[309822975,1704179434141,-242.763172,0.00040968,2]
[309822976,1704179434150,-242.763172,0.00040968,2]
[309822977,1704179434159,-242.763172,0.00040968,2]
[309822978,1704179434168,-242.763172,0.00040968,2]
[309822979,1704179434178,-300.0,0.00040968,4]
[309822980,1704179434187,-192.08374902,0.00040969,4]
[309822981,1704179434197,-768.46288311,0.00040969,30]
[309822982,1704179434207,-15963.71127767,0.00040969,4]
[309822983,1704179434216,-271.83225859,0.00040995,5]
[309822984,1704179434225,-440.10724969,0.00041,2]
[309822985,1704179434234,-13643.06921271,0.00041,5]
[309822986,1704179434243,-160.96497103,0.00041,2]
[309822987,1704179434253,-151.0,0.00041,2]
[309822988,1704179434262,-630.099773,0.00041,2]
[309822989,1704179434271,-630.099773,0.00041,2]
[309822990,1704179434282,-242.763172,0.00041,2]
[309822991,1704179434290,-242.763172,0.00041,2]
[309822992,1704179434300,-317.0,0.0004107,60]
[309822993,1704179434309,-317.0,0.0004108,60]
[309822994,1704179434319,-317.0,0.0004109,60]
[309822995,1704179434328,-220.80047958,0.00041095,3]
[309822996,1704179434338,-506.33757295,0.00041095,7]
[309822997,1704179434348,-537.20078607,0.00041095,7]
[309822998,1704179434357,-532.33450474,0.00041095,7]
[309822999,1704179434367,-502.28522468,0.00041095,7]
[309823000,1704179434377,-500.0,0.00041095,7]
[309823001,1704179434387,-500.0,0.00041095,7]
[309823002,1704179434397,-500.0,0.00041095,7]
[309823003,1704179434408,-501.22713174,0.00041095,7]
[309823004,1704179434418,-504.08580467,0.00041095,7]
[309823005,1704179434428,-500.0,0.00041095,7]
[309823006,1704179434438,-503.19921092,0.00041095,7]
[309823007,1704179434462,-502.20811042,0.00041095,7]
[309823008,1704179434476,-350.46453029,0.00041095,7]
[309823009,1704179434487,-502.60353928,0.00041095,7]
[309823010,1704179434498,-500.0,0.00041095,7]
[309823011,1704179434508,-500.0,0.00041095,2]
[309823012,1704179434518,-500.0,0.00041095,7]
[309823013,1704179434528,-500.0,0.00041095,7]
[309823014,1704179434539,-529.08525252,0.00041095,7]
[309823015,1704179434549,-500.0,0.00041095,7]
[309823016,1704179434560,-500.0,0.00041095,7]
[309823017,1704179434575,-500.0,0.00041095,7]
[309823018,1704179434586,-223.23790234,0.00041095,7]
[309823019,1704179434596,-500.92608889,0.00041095,7]
[309823020,1704179434606,-511.63726716,0.00041095,7]
[309823021,1704179434616,-500.0,0.00041095,7]
[309823022,1704179434626,-456.09866089,0.00041095,7]
[309823023,1704179434636,-500.0,0.00041095,7]
[309823024,1704179434645,-500.0,0.00041095,7]
[309823025,1704179434655,-500.0,0.00041095,7]
[309823026,1704179434664,-507.12318767,0.00041095,7]
[309823027,1704179434674,-507.0645809,0.00041095,7]
[309823028,1704179434684,-510.42695868,0.00041095,7]
[309823029,1704179434693,-2271.02,0.00041095,7]
[309823030,1704179434704,-503.5416314,0.00041095,7]
[309823031,1704179434714,-500.0,0.00041095,7]
[309823032,1704179434724,-203.45177522,0.00041095,7]
[309823033,1704179434734,-520.24465914,0.00041095,7]
[309823034,1704179434744,-535.07169261,0.00041095,7]
[309823035,1704179434754,-500.0,0.00041095,7]
[309823036,1704179434764,-500.0,0.00041095,7]
[309823037,1704179434774,-500.0,0.00041095,7]
[309823038,1704179434783,-526.42836703,0.00041095,7]
[309823039,1704179434793,-613.75424218,0.00041095,7]
[309823040,1704179434802,-502.16963353,0.00041095,7]
[309823041,1704179434814,-500.0,0.00041095,7]
[309823042,1704179434823,-648.15828433,0.00041095,7]
[309823043,1704179434832,-500.0,0.00041095,7]
[309823044,1704179434841,-500.0,0.00041095,7]
[309823045,1704179434850,-500.0,0.00041095,7]
[309823046,1704179434859,-500.0,0.00041095,7]
[309823047,1704179434868,-500.0,0.00041095,7]
[309823048,1704179434878,-500.0,0.00041095,7]
[309823049,1704179434889,-500.0,0.00041095,7]
[309823050,1704179434899,-500.0,0.00041095,7]
[309823051,1704179434909,-500.0,0.00041095,7]
[309823052,1704179434919,-500.0,0.00041095,7]
[309823053,1704179434928,-503.37375583,0.00041095,7]
[309823054,1704179434938,-451.29735976,0.00041095,7]
[309823055,1704179434947,-500.0,0.00041095,7]
[309823056,1704179434958,-500.0,0.00041095,7]
[309823057,1704179434968,-500.98072647,0.00041095,2]
[309823058,1704179434978,-501.60078934,0.00041095,7]
[309823059,1704179434987,-500.0,0.00041095,7]
[309823060,1704179434997,-501.44197547,0.00041095,7]
[309823061,1704179435007,-500.0,0.00041095,7]
[309823062,1704179435017,-500.0,0.00041095,7]
[309823063,1704179435027,-500.0,0.00041095,7]
[309823064,1704179435038,-500.0,0.00041095,7]
[309823065,1704179435048,-500.0,0.00041095,7]
[309823066,1704179435057,-502.86564975,0.00041095,7]
[309823067,1704179435071,-500.0,0.00041095,7]
[309823068,1704179435082,-500.0,0.00041095,7]
[309823069,1704179435092,-1545.81,0.00041095,7]
[309823070,1704179435102,-500.0,0.00041095,7]
[309823071,1704179435112,-500.0,0.00041095,7]
[309823072,1704179435122,-500.0,0.00041095,7]
[309823073,1704179435132,-500.0,0.00041095,7]
[309823074,1704179435142,-704.99,0.00041095,7]
[309823075,1704179435152,-528.60377604,0.00041095,7]
[309823076,1704179435162,-500.0,0.00041095,7]
[309823077,1704179435172,-502.96994907,0.00041095,7]
[309823078,1704179435182,-500.0,0.00041095,7]
[309823079,1704179435192,-506.05113733,0.00041095,7]
[309823080,1704179435202,-500.0,0.00041095,7]
[309823081,1704179435212,-500.0,0.00041095,7]
[309823082,1704179435222,-470.52088449,0.00041095,7]
[309823083,1704179435232,-521.90692322,0.00041095,7]
[309823084,1704179435242,-500.0,0.00041095,7]
[309823085,1704179435251,-500.0,0.00041095,7]
[309823086,1704179435261,-500.0,0.00041095,7]
[309823087,1704179435364,-502.85488882,0.00041095,7]
[309823088,1704179435375,-557.49671277,0.00041095,7]
[309823089,1704179435385,-501.7322067,0.00041095,7]
[309823090,1704179435394,-500.0,0.00041095,7]
[309823091,1704179435404,-501.13066623,0.00041095,7]
[309823092,1704179435413,-501.88365766,0.00041095,7]
[309823093,1704179435423,-504.12430121,0.00041095,7]
[309823094,1704179435432,-1112.69,0.00041095,7]
[309823095,1704179435441,-232.76638391,0.00041095,7]
[309823096,1704179435451,-500.0,0.00041095,7]
[309823097,1704179435460,-528.65706996,0.00041095,7]
[309823098,1704179435469,-501.38464455,0.00041095,7]
[309823099,1704179435478,-502.74262644,0.00041095,7]
[309823100,1704179435488,-500.0,0.00041095,7]
[309823101,1704179435497,-504.43813749,0.00041095,7]
[309823102,1704179435506,-500.0,0.00041095,7]
[309823103,1704179435515,-500.0,0.00041095,7]
[309823104,1704179435524,-500.0,0.00041095,7]
[309823105,1704179435533,-500.0,0.00041095,7]
[309823106,1704179435542,-500.0,0.00041095,7]
[309823107,1704179435552,-502.38654514,0.00041095,7]
[309823108,1704179435562,-500.0,0.00041095,7]
[309823109,1704179435571,-500.0,0.00041095,7]
[309823110,1704179435580,-525.49511778,0.00041095,7]
[309823111,1704179435589,-507.10807147,0.00041095,7]
[309823112,1704179435599,-510.1881942,0.00041095,7]
[309823113,1704179435609,-500.0,0.00041095,7]
[309823114,1704179435621,-509.11119532,0.00041095,7]
[309823115,1704179435630,-513.43077945,0.00041095,7]
[309823116,1704179435639,-500.0,0.00041095,7]
[309823117,1704179435648,-500.0,0.00041095,7]
[309823118,1704179435658,-188.8275591,0.00041095,7]
[309823119,1704179435667,-500.0,0.00041095,7]
[309823120,1704179435677,-288.64103576,0.00041095,7]
[309823121,1704179435686,-500.0,0.00041095,7]
[309823122,1704179435697,-505.24422187,0.00041095,7]
[309823123,1704179435706,-500.0,0.00041095,7]
[309823124,1704179435716,-626.64642937,0.00041095,7]
[309823125,1704179435725,-509.51862074,0.00041095,7]
[309823126,1704179435734,-518.03156489,0.00041095,7]
[309823127,1704179435744,-500.0,0.00041095,7]
[309823128,1704179435753,-505.81306495,0.00041095,7]
[309823129,1704179435762,-508.12761668,0.00041095,7]
[309823130,1704179435772,-501.09918529,0.00041095,7]
[309823131,1704179435782,-500.0,0.00041095,7]
[309823132,1704179435792,-500.0,0.00041095,7]
[309823133,1704179435801,-500.0,0.00041095,7]
[309823134,1704179435811,-500.0,0.00041095,7]
[309823135,1704179435820,-500.0,0.00041095,7]
[309823136,1704179435830,-500.0,0.00041095,7]
[309823137,1704179435839,-500.0,0.00041095,7]
[309823138,1704179435849,-536.18,0.00041095,7]
[309823139,1704179435858,-507.09872832,0.00041095,7]
[309823140,1704179435867,-500.0,0.00041095,7]
[309823141,1704179435877,-600.59129394,0.00041095,7]
[309823142,1704179435886,-524.97920464,0.00041095,7]
[309823143,1704179435895,-500.0,0.00041095,7]
[309823144,1704179435905,-500.0,0.00041095,7]
[309823145,1704179435914,-284.58019569,0.00041095,7]
[309823146,1704179435924,-500.0,0.00041095,7]
[309823147,1704179435934,-950.37,0.00041095,7]
[309823148,1704179435943,-498.12549123,0.00041095,7]
[309823149,1704179435953,-500.0,0.00041095,7]
[309823150,1704179435964,-513.91252564,0.00041095,7]
[309823151,1704179435974,-500.0,0.00041095,7]
[309823152,1704179435984,-1156.79,0.00041095,7]
[309823153,1704179435994,-1156.79,0.00041095,7]
[309823154,1704179436004,-1156.79,0.00041095,7]
[309823155,1704179436013,-1156.79,0.00041095,7]
[309823156,1704179436022,-1156.79,0.00041095,7]
[309823157,1704179436032,-1156.79,0.00041095,7]
[309823158,1704179436041,-1156.79,0.00041095,7]
[309823159,1704179436051,-1156.79,0.00041095,7]
[309823160,1704179436062,-1156.79,0.00041095,7]
[309823161,1704179436073,-1156.79,0.00041095,7]
[309823162,1704179436082,-1156.79,0.00041095,7]
[309823163,1704179436093,-1156.79,0.00041095,7]
[309823164,1704179436102,-1156.79,0.00041095,7]
[309823165,1704179436112,-1156.79,0.00041095,7]
[309823166,1704179436122,-1156.79,0.00041095,7]
[309823167,1704179436132,-502.45580185,0.00041095,7]
[309823168,1704179436142,-1156.79,0.00041095,7]
[309823169,1704179436152,-1156.79,0.00041095,7]
[309823170,1704179436161,-1156.79,0.00041095,7]
[309823171,1704179436171,-501.29674734,0.00041095,7]
[309823172,1704179436181,-1156.79,0.00041095,7]
[309823173,1704179436190,-1156.79,0.00041095,7]
[309823174,1704179436200,-1156.79,0.00041095,7]
[309823175,1704179436209,-1156.79,0.00041095,7]
[309823176,1704179436219,-1156.79,0.00041095,7]
[309823177,1704179436229,-1156.99575002,0.00041095,7]
[309823178,1704179436238,-500.0,0.00041095,7]
[309823179,1704179436247,-502.4742012,0.00041095,7]
[309823180,1704179436256,-828.81,0.00041095,7]
[309823181,1704179436266,-651.73,0.00041095,7]
[309823182,1704179436275,-3277.57,0.00041095,7]
[309823183,1704179436284,-501.8983955,0.00041095,7]
[309823184,1704179436294,-500.0,0.00041095,7]
[309823185,1704179436304,-205.39912874,0.00041095,7]
[309823186,1704179436314,-505.38129326,0.00041095,7]
[309823187,1704179436323,-511.91142472,0.00041095,7]
[309823188,1704179436333,-512.68359434,0.00041095,7]
[309823189,1704179436343,-500.0,0.00041095,7]
[309823190,1704179436352,-500.0,0.00041095,7]
[309823191,1704179436362,-500.0,0.00041095,7]
[309823192,1704179436371,-500.0,0.00041095,7]
[309823193,1704179436380,-500.0,0.00041095,7]
[309823194,1704179436389,-500.0,0.00041095,7]
[309823195,1704179436399,-500.0,0.00041095,7]
[309823196,1704179436408,-500.0,0.00041095,4]
[309823197,1704179436417,-500.0,0.00041095,7]
[309823198,1704179436427,-500.0,0.00041095,7]
[309823199,1704179436436,-529.74128568,0.00041095,7]
[309823200,1704179436445,-517.58500742,0.00041095,7]
[309823201,1704179436454,-500.0,0.00041095,7]
[309823202,1704179436464,-608.50439008,0.00041095,7]
[309823203,1704179436473,-500.0,0.00041095,7]
[309823204,1704179436483,-500.0,0.00041095,7]
[309823205,1704179436493,-500.0,0.00041095,7]
[309823206,1704179436502,-503.71771778,0.00041095,7]
[309823207,1704179436512,-500.0,0.00041095,7]
[309823208,1704179436521,-500.0,0.00041095,7]
[309823209,1704179436530,-467.79304641,0.00041095,7]
[309823210,1704179436540,-500.0,0.00041095,7]
[309823211,1704179436549,-23172.44,0.00041095,3]
[309823212,1704179436558,-150.0,0.00041095,7]
[309823213,1704179436568,-500.0,0.00041095,7]
[309823214,1704179436577,-500.0,0.00041095,7]
[309823215,1704179436587,-524.87803194,0.00041095,7]
[309823216,1704179436596,-378.35919804,0.00041095,7]
[309823217,1704179436605,-510.12991902,0.00041095,7]
[309823218,1704179436615,-508.17156175,0.00041095,7]
[309823219,1704179436623,-500.0,0.00041095,7]
[309823220,1704179436632,-500.0,0.00041095,7]
[309823221,1704179436641,-500.0,0.00041095,7]
[309823222,1704179436650,-507.19171147,0.00041095,7]
[309823223,1704179436660,-500.0,0.00041095,7]
[309823224,1704179436669,-514.24530831,0.00041095,7]
[309823225,1704179436678,-543.27081281,0.00041095,7]
[309823226,1704179436687,-500.0,0.00041095,7]
[309823227,1704179436696,-509.90108145,0.00041095,7]
[309823228,1704179436705,-500.0,0.00041095,7]
[309823229,1704179436715,-600.42,0.00041095,7]
[309823230,1704179436724,-650.72,0.00041095,7]
[309823231,1704179436733,-503.16301792,0.00041095,7]
[309823232,1704179436742,-500.0,0.00041095,7]
[309823233,1704179436751,-500.0,0.00041095,7]
[309823234,1704179436761,-500.0,0.00041095,7]
[309823235,1704179436791,-500.0,0.00041095,7]
[309823236,1704179436802,-500.0,0.00041095,7]
[309823237,1704179436815,-500.0,0.00041095,7]
[309823238,1704179436826,-4869.54,0.00041095,7]
[309823239,1704179436835,-500.0,0.00041095,7]
[309823240,1704179436845,-500.0,0.00041095,7]
[309823241,1704179436855,-573.44590777,0.00041095,7]
[309823242,1704179436866,-500.0,0.00041095,7]
[309823243,1704179436877,-3554.95,0.00041095,7]
[309823244,1704179436886,-500.0,0.00041095,7]
[309823245,1704179436898,-500.0,0.00041095,7]
[309823246,1704179436909,-517.55320889,0.00041095,7]
[309823247,1704179436920,-500.0,0.00041095,7]
[309823248,1704179436932,-500.0,0.00041095,7]
[309823249,1704179436944,-3566.18,0.00041095,7]
[309823250,1704179436955,-500.0,0.00041095,7]
[309823251,1704179436966,-500.00000001,0.00041095,7]
[309823252,1704179436977,-504.31060641,0.00041095,2]
[309823253,1704179436987,-500.0,0.00041095,7]
[309823254,1704179436997,-501.65209593,0.00041095,7]
[309823255,1704179437008,-500.0,0.00041095,7]
[309823256,1704179437018,-4099.04,0.00041095,7]
[309823257,1704179437027,-505.08059759,0.00041095,7]
[309823258,1704179437037,-500.0,0.00041095,7]
[309823259,1704179437047,-500.0,0.00041095,7]
[309823260,1704179437056,-500.0,0.00041095,7]
[309823261,1704179437068,-500.0,0.00041095,7]
[309823262,1704179437141,-604.99735244,0.00041095,7]
[309823263,1704179437152,-500.0,0.00041095,7]
[309823264,1704179437162,-500.0,0.00041095,7]
[309823265,1704179437173,-500.0,0.00041095,7]
[309823266,1704179437183,-500.0,0.00041095,7]
[309823267,1704179437193,-500.0,0.00041095,7]
[309823268,1704179437204,-500.0,0.00041095,7]
[309823269,1704179437214,-500.0,0.00041095,7]
[309823270,1704179437225,-500.0,0.00041095,7]
[309823271,1704179437235,-500.0,0.00041095,7]
[309823272,1704179437245,-500.0,0.00041095,7]
[309823273,1704179437257,-500.0,0.00041095,7]
[309823274,1704179437268,-503.38421197,0.00041095,7]
[309823275,1704179437279,-508.2479361,0.00041095,7]
[309823276,1704179437289,-500.0,0.00041095,7]
[309823277,1704179437299,-500.0,0.00041095,7]
[309823278,1704179437309,-506.45164416,0.00041095,7]
[309823279,1704179437322,-500.0,0.00041095,7]
[309823280,1704179437333,-503.96848115,0.00041095,7]
[309823281,1704179437343,-500.0,0.00041095,7]
[309823282,1704179437353,-390.34631472,0.00041095,7]
[309823283,1704179437363,-500.0,0.00041095,7]
[309823284,1704179437373,-507.58897877,0.00041095,7]
[309823285,1704179437381,-953.72,0.00041095,7]
[309823286,1704179437391,-633.35,0.00041095,7]
[309823287,1704179437401,-500.0,0.00041095,7]
[309823288,1704179437411,-304.64690222,0.00041095,7]
[309823289,1704179437421,-500.0,0.00041095,7]
[309823290,1704179437431,-503.02228674,0.00041095,7]
[309823291,1704179437441,-500.0,0.00041095,7]
[309823292,1704179437450,-526.02998083,0.00041095,7]
[309823293,1704179437460,-508.6842317,0.00041095,7]
[309823294,1704179437470,-2116.77,0.00041095,7]
[309823295,1704179437479,-503.37188405,0.00041095,7]
[309823296,1704179437489,-500.0,0.00041095,7]
[309823297,1704179437498,-500.0,0.00041095,7]
[309823298,1704179437508,-292.49371244,0.00041095,7]
[309823299,1704179437519,-500.0,0.00041095,7]
[309823300,1704179437529,-500.0,0.00041095,7]
[309823301,1704179437539,-501.74528454,0.00041095,7]
[309823302,1704179437549,-506.26932897,0.00041095,7]
[309823303,1704179437558,-500.49963953,0.00041095,7]
[309823304,1704179437568,-500.0,0.00041095,7]
[309823305,1704179437577,-151.0,0.00041095,2]
[309823306,1704179437587,-151.0,0.00041095,2]
[309823307,1704179437596,-151.0,0.00041095,2]
[309823308,1704179437606,-151.0,0.00041095,2]
[309823309,1704179437618,-151.0,0.00041095,2]
[309823310,1704179437628,-630.099773,0.00041095,2]
[309823311,1704179437637,-630.099773,0.00041095,2]
[309823312,1704179437646,-630.099773,0.00041095,2]
[309823313,1704179437656,-630.099773,0.00041095,2]
[309823314,1704179437664,-630.099773,0.00041095,2]
[309823316,1704179437674,-630.099773,0.00041095,2]
[309823318,1704179437683,-630.099773,0.00041095,2]
[309823319,1704179437694,-630.099773,0.00041095,2]
[309823320,1704179437703,-630.099773,0.00041095,2]
[309823321,1704179437712,-630.099773,0.00041095,2]
[309823322,1704179437722,-242.763172,0.00041095,2]
[309823323,1704179437731,-242.763172,0.00041095,2]
[309823324,1704179437740,-242.763172,0.00041095,2]
[309823325,1704179437749,-242.763172,0.00041095,2]
[309823326,1704179437759,-242.763172,0.00041095,2]
[309823327,1704179437768,-242.763172,0.00041095,2]
[309823329,1704179437777,-242.763172,0.00041095,2]
[309823331,1704179437787,-242.763172,0.00041095,2]
[309823333,1704179437796,-242.763172,0.00041095,2]
[309823334,1704179437806,-242.763172,0.00041095,2]
[309823336,1704179437816,-232.34121036,0.00041099,4]
[309823337,1704179437825,-500.0,0.00041099,4]
[309823338,1704179437834,-459.64245109,0.00041099,4]
[309823339,1704179437844,-500.0,0.00041099,4]
[309823340,1704179437853,-580.51227623,0.00041099,4]
[309823341,1704179437861,-500.0,0.00041099,4]
[309823342,1704179437871,-500.0,0.00041099,4]
[309823343,1704179437880,-500.0,0.00041099,4]
[309823344,1704179437889,-500.0,0.00041099,4]
[309823345,1704179437899,-500.0,0.00041099,4]
[309823346,1704179437908,-500.0,0.00041099,4]
[309823347,1704179437917,-500.54468366,0.00041099,4]
[309823348,1704179437926,-500.0,0.00041099,4]
[309823350,1704179437935,-6441.49006005,0.00041138,10]
[309823351,1704179437944,-563.14,0.00041231,7]
[309823353,1704179437953,-563.14,0.00041231,7]
[309823355,1704179437963,-563.14,0.00041231,7]
[309823356,1704179437972,-563.14,0.00041231,7]
[309823357,1704179437982,-563.14,0.00041231,7]
[309823358,1704179437991,-563.14,0.00041231,7]
[309823359,1704179438000,-563.14,0.00041231,7]
[309823360,1704179438009,-563.14,0.00041231,7]
[309823361,1704179438020,-563.14,0.00041231,7]
[309823362,1704179438029,-563.14,0.00041231,7]
[309823363,1704179438039,-500.0,0.00041232,7]
[309823364,1704179438049,-500.0,0.00041232,7]
[309823365,1704179438058,-510.82192723,0.00041232,7]
[309823366,1704179438068,-500.0,0.00041232,2]
[309823367,1704179438077,-515.85994366,0.00041232,7]
[309823368,1704179438087,-620.87649819,0.00041232,7]
[309823370,1704179438096,-500.0,0.00041232,7]
[309823371,1704179438105,-504.04745941,0.00041232,7]
[309823373,1704179438115,-500.0,0.00041232,7]
[309823375,1704179438124,-500.0,0.00041232,7]
[309823377,1704179438133,-519.2390185,0.00041232,7]
[309823378,1704179438142,-506.94734692,0.00041232,7]
[309823380,1704179438152,-2271.02,0.00041232,7]
[309823382,1704179438161,-519.45813524,0.00041232,7]
[309823383,1704179438171,-265.51121293,0.00041232,7]
[309823385,1704179438181,-502.94656177,0.00041232,7]
[309823386,1704179438191,-500.0,0.00041232,7]
[309823387,1704179438201,-500.0,0.00041232,7]
[309823388,1704179438211,-500.0,0.00041232,7]
[309823389,1704179438221,-506.24436151,0.00041232,7]
[309823390,1704179438231,-500.0,0.00041232,7]
[309823391,1704179438241,-505.17781555,0.00041232,7]
[309823392,1704179438251,-621.66743172,0.00041232,7]
[309823393,1704179438261,-500.0,0.00041232,7]
[309823394,1704179438270,-500.0,0.00041232,7]
[309823395,1704179438281,-500.0,0.00041232,7]
[309823396,1704179438290,-508.44288091,0.00041232,7]
[309823397,1704179438300,-500.0,0.00041232,7]
[309823399,1704179438310,-511.13209528,0.00041232,7]
[309823400,1704179438320,-500.0,0.00041232,7]
[309823401,1704179438330,-500.0,0.00041232,7]
[309823403,1704179438340,-500.0,0.00041232,7]
[309823404,1704179438350,-500.0,0.00041232,7]
[309823405,1704179438359,-500.0,0.00041232,7]
[309823406,1704179438368,-500.0,0.00041232,7]
[309823407,1704179438377,-503.76871091,0.00041232,7]
[309823408,1704179438386,-500.0,0.00041232,7]
[309823409,1704179438395,-1545.81,0.00041232,7]
[309823410,1704179438404,-172.41593127,0.00041232,7]
[309823411,1704179438414,-505.83205928,0.00041232,7]
[309823412,1704179438423,-500.0,0.00041232,7]
[309823413,1704179438432,-311.609951,0.00041232,7]
[309823414,1704179438442,-704.99,0.00041232,7]
[309823415,1704179438453,-583.9633887,0.00041232,7]
[309823416,1704179438463,-500.0,0.00041232,7]
[309823417,1704179438473,-500.0,0.00041232,7]
[309823418,1704179438483,-500.0,0.00041232,7]
[309823419,1704179438493,-500.0,0.00041232,7]
[309823420,1704179438505,-500.0,0.00041232,7]
[309823421,1704179438516,-500.0,0.00041232,7]
[309823422,1704179438525,-513.19198858,0.00041232,7]
[309823423,1704179438536,-1112.69,0.00041232,7]
[309823424,1704179438545,-503.46402141,0.00041232,7]
[309823425,1704179438554,-578.5486869,0.00041232,7]
[309823426,1704179438563,-287.36103913,0.00041232,7]
[309823427,1704179438574,-353.40449712,0.00041232,7]
[309823428,1704179438584,-508.90637175,0.00041232,7]
[309823429,1704179438594,-500.0,0.00041232,7]
[309823430,1704179438604,-500.0,0.00041232,7]
[309823431,1704179438614,-514.27312123,0.00041232,7]
[309823432,1704179438623,-500.0,0.00041232,7]
[309823433,1704179438634,-500.0,0.00041232,7]
[309823434,1704179438645,-500.0,0.00041232,7]
[309823435,1704179438655,-435.02444488,0.00041232,7]
[309823436,1704179438665,-504.74789277,0.00041232,7]
[309823437,1704179438675,-503.42098085,0.00041232,7]
[309823438,1704179438685,-502.8064103,0.00041232,7]
[309823439,1704179438695,-513.86714749,0.00041232,7]
[309823440,1704179438705,-500.0,0.00041232,7]
[309823441,1704179438774,-500.0,0.00041232,7]
[309823442,1704179438785,-514.71288415,0.00041232,7]
[309823443,1704179438795,-506.10059948,0.00041232,7]
[309823444,1704179438806,-167.58397682,0.00041232,7]
[309823445,1704179438816,-516.07351958,0.00041232,7]
[309823446,1704179438827,-500.0,0.00041232,7]
[309823447,1704179438838,-536.18,0.00041232,7]
[309823448,1704179438848,-425.57604119,0.00041232,7]
[309823449,1704179438859,-202.56545927,0.00041232,7]
[309823450,1704179438869,-509.34844658,0.00041232,7]
[309823451,1704179438878,-506.81914496,0.00041232,7]
[309823452,1704179438889,-950.37,0.00041232,7]
[309823453,1704179438900,-500.0,0.00041232,7]
[309823454,1704179438910,-521.11554391,0.00041232,7]
[309823455,1704179438919,-500.0,0.00041232,7]